bitfinex/quotes_BTCUSD_20260127
["timestamp","ask_amount","ask_price","bid_price","bid_amount"]
[1769551815380,0.11179697,89150.0,89142.0,4.692e-05]
[1769551815513,0.000148,89152.0,89149.0,0.05608565]
[1769551815722,0.11178062,89151.0,89149.0,0.05608565]
[1769551815920,0.11178062,89150.0,89149.0,0.05608565]
[1769551816128,0.11178062,89150.0,89142.0,4.692e-05]
[1769551816129,0.000148,89152.0,89150.0,0.05608524]
[1769551816305,0.1117809,89151.0,89150.0,0.05608524]
[1769551817398,0.000148,89152.0,89150.0,0.05608524]
[1769551817607,0.000148,89152.0,89148.0,0.05608617]
[1769551817803,0.000148,89152.0,89149.0,0.05608583]
[1769551818980,0.000148,89152.0,89150.0,0.0560852]
[1769551819499,0.000148,89152.0,89149.0,0.05608583]
[1769551819837,0.000148,89152.0,89148.0,0.05608547]
[1769551819974,0.000148,89152.0,89150.0,0.05608521]
[1769551820593,0.000148,89152.0,89149.0,0.0560858]
[1769551822198,0.000148,89152.0,89150.0,0.05608513]
[1769551823879,0.000148,89152.0,89148.0,0.05608638]
[1769551824099,0.000148,89152.0,89149.0,0.05608582]
[1769551824277,0.000148,89152.0,89150.0,0.05608523]
[1769551824471,0.000148,89152.0,89149.0,0.05608582]
[1769551828955,0.000148,89152.0,89150.0,0.05608483]
[1769551829163,0.000148,89152.0,89142.0,4.692e-05]
[1769551829340,0.000148,89152.0,89148.0,0.05608617]
[1769551829537,0.05606273,89186.0,89142.0,4.692e-05]
[1769551829538,0.02466587,89168.0,89142.0,4.692e-05]
[1769551829783,0.13650079,89164.0,89155.0,0.05608152]
[1769551829959,0.02466587,89168.0,89154.0,0.05608234]
[1769551830339,0.02466587,89168.0,89153.0,0.05608294]
[1769551830534,0.13650079,89166.0,89153.0,0.05608294]
[1769551831196,0.13650079,89166.0,89154.0,0.05608256]
[1769551831398,0.02466587,89168.0,89148.0,0.01271037]
[1769551831399,0.13650079,89163.0,89148.0,0.01271037]
[1769551831600,0.13650079,89163.0,89148.0,0.23705615]
[1769551831800,0.13650079,89163.0,89151.0,0.05608413]
[1769551831991,0.13650079,89163.0,89148.0,0.06879661]
[1769551832164,0.13650079,89163.0,89149.0,0.05608564]
[1769551833293,0.13650079,89163.0,89151.0,0.05608419]
[1769551833864,0.13650079,89163.0,89149.0,0.22434272]
[1769551834067,0.13650079,89163.0,89153.0,0.05608305]
[1769551834690,0.13650079,89163.0,89152.0,0.05608382]
[1769551834884,0.13650079,89163.0,89150.0,0.05608522]
[1769551835091,0.13650079,89163.0,89151.0,0.05608407]
[1769551836129,0.13650079,89163.0,89152.0,0.05608384]
[1769551836364,0.13650079,89163.0,89151.0,0.05608407]
[1769551837050,0.13650079,89163.0,89151.0,0.05608449]
[1769551841472,0.13650079,89163.0,89152.0,0.05608388]
[1769551842295,0.02466587,89168.0,89155.0,0.05608161]
[1769551842521,0.02466587,89168.0,89154.0,0.05608269]
[1769551843118,0.02466587,89168.0,89152.0,0.05608397]
[1769551843321,0.13650079,89166.0,89153.0,0.05608306]
[1769551844059,0.13650079,89166.0,89154.0,0.05608267]
[1769551844217,0.13650079,89166.0,89153.0,0.05608306]
[1769551844638,0.13650079,89166.0,89154.0,0.05608258]
[1769551845521,0.13650079,89166.0,89155.0,0.05608189]
[1769551846211,0.13650079,89166.0,89156.0,0.05608106]
[1769551846342,0.13650079,89166.0,89155.0,0.05608185]
[1769551846698,0.13650079,89166.0,89155.0,0.05608206]
[1769551846956,0.13650079,89166.0,89154.0,0.05608213]
[1769551847295,0.13650079,89166.0,89153.0,0.05608329]
[1769551847492,0.13650079,89166.0,89154.0,0.05608248]
[1769551847917,0.000148,89170.0,89157.0,0.0560806]
[1769551848123,0.000148,89170.0,89156.0,0.05608107]
[1769551848680,0.000148,89170.0,89157.0,0.05608073]
[1769551848899,0.000148,89170.0,89156.0,0.05608107]
[1769551849774,0.26475863,89170.0,89156.0,0.05608107]
[1769551852017,0.40125942,89170.0,89156.0,0.05608107]
[1769551855383,0.40125942,89170.0,89155.0,0.05608198]
[1769551855681,0.12979405,89165.0,89155.0,0.05608198]
[1769551855856,0.12979405,89169.0,89155.0,0.05608198]
[1769551856961,0.12979405,89169.0,89156.0,0.0560814]
[1769551859471,0.12979405,89169.0,89157.0,0.05608057]
[1769551860275,0.12979405,89169.0,89155.0,0.05608202]
[1769551860714,0.12979405,89169.0,89156.0,0.05608146]
[1769551861318,0.12979405,89169.0,89156.0,0.05576009]
[1769551861955,0.12979405,89169.0,89156.0,0.05543875]
[1769551862163,0.12979405,89169.0,89157.0,0.05608081]
[1769551862774,0.2875584,89170.0,89155.0,0.05608206]
[1769551862949,0.12979405,89167.0,89156.0,0.05608144]
[1769551865568,0.12979405,89167.0,89152.0,0.02444678]
[1769551865785,0.12979405,89167.0,89157.0,0.05608038]
[1769551866155,0.12979405,89167.0,89156.0,0.05608038]
[1769551866378,0.12979405,89167.0,89157.0,0.0560807]
[1769551867320,0.12979405,89167.0,89158.0,0.05608021]
[1769551868494,0.12979405,89167.0,89157.0,0.0560807]
[1769551868729,0.12979405,89167.0,89158.0,0.05608019]
[1769551868974,0.12979405,89167.0,89158.0,0.05602019]
[1769551869210,0.12979405,89167.0,89158.0,0.05537771]
[1769551869832,0.12979405,89167.0,89157.0,0.0560807]
[1769551870018,0.12979405,89167.0,89158.0,0.0560801]
[1769551870634,0.12979405,89167.0,89159.0,0.05607903]
[1769551871345,0.12979405,89167.0,89158.0,0.05607915]
[1769551871777,0.12979405,89167.0,89157.0,0.0560807]
[1769551872409,0.12979405,89167.0,89158.0,0.05608017]
[1769551876080,0.12979405,89167.0,89156.0,0.05608133]
[1769551877084,0.12979405,89167.0,89157.0,0.05608083]
[1769551879427,0.12979405,89167.0,89156.0,0.05608133]
[1769551880978,0.12979405,89167.0,89157.0,0.05608084]
[1769551881185,0.12979405,89167.0,89158.0,0.05608017]
[1769551881806,0.12979405,89180.0,89159.0,0.13069016]
[1769551882016,0.12979405,89180.0,89166.0,0.05607493]
[1769551882200,0.12979405,89180.0,89160.0,0.26461063]
[1769551882447,0.12979405,89180.0,89169.0,0.05607289]
[1769551883261,0.12979405,89180.0,89167.0,0.05607332]
[1769551883485,0.12979405,89180.0,89168.0,0.05607389]
[1769551883693,0.1302635,89180.0,89168.0,0.05607389]
[1769551884435,0.1302635,89180.0,89169.0,0.05607324]
[1769551885049,0.1302635,89180.0,89168.0,0.05607389]
[1769551888596,0.1302635,89180.0,89165.0,0.05607573]
[1769551888798,0.1302635,89180.0,89166.0,0.05607497]
[1769551888981,0.1302635,89180.0,89166.0,0.05607479]
[1769551889616,0.1302635,89180.0,89162.0,0.02431823]
[1769551889617,0.02488171,89178.0,89162.0,0.05607715]
[1769551889879,0.15609409,89177.0,89163.0,0.05607653]
[1769551890838,0.15609409,89177.0,89163.0,0.05607699]
[1769551891045,0.15609409,89177.0,89162.0,0.05607653]
[1769551891248,0.15609409,89177.0,89161.0,0.05607829]
[1769551891424,0.15609409,89177.0,89162.0,0.05607737]
[1769551891834,0.15609409,89177.0,89163.0,0.05607682]
[1769551892779,0.15609409,89177.0,89164.0,0.05607643]
[1769551894727,0.15609409,89177.0,89163.0,0.05607682]
[1769551894927,0.15609409,89177.0,89164.0,0.05607639]
[1769551896077,0.15609409,89177.0,89163.0,0.05607682]
[1769551896648,0.15609409,89177.0,89164.0,0.05607621]
[1769551897106,0.15609409,89177.0,89164.0,0.05607624]
[1769551898944,0.15609409,89177.0,89163.0,0.05607698]
[1769551899157,0.15609409,89177.0,89164.0,0.05607642]
[1769551899303,0.15609409,89177.0,89163.0,0.05607698]
[1769551902757,0.15609409,89177.0,89163.0,0.05607653]
[1769551902961,0.15609409,89177.0,89164.0,0.05607639]
[1769551904406,0.15609409,89177.0,89163.0,0.05607652]
[1769551904573,0.15609409,89177.0,89163.0,0.05607679]
[1769551904770,0.02488171,89170.0,89156.0,0.000148]
[1769551904979,0.13121238,89167.0,89156.0,0.000148]
[1769551905211,0.15609409,89165.0,89156.0,0.000148]
[1769551905843,0.15609409,89165.0,89156.0,0.05622935]
[1769551906065,0.15609409,89165.0,89156.0,0.05622943]
[1769551907348,0.15609409,89165.0,89156.0,0.000148]
[1769551908390,0.15609409,89165.0,89156.0,0.22447138]
[1769551908589,0.15609409,89165.0,89157.0,0.05608079]
[1769551908972,0.15609409,89165.0,89158.0,0.05607969]
[1769551910350,0.15609409,89165.0,89159.0,0.05607958]
[1769551910546,0.15609409,89165.0,89158.0,0.05607969]
[1769551911745,0.13121238,89165.0,89157.0,0.05607981]
[1769551912678,0.13121238,89165.0,89158.0,0.05608]
[1769551912890,0.13121238,89165.0,89156.0,0.000148]
[1769551919465,0.13121238,89165.0,89156.0,0.05622942]
[1769551919669,0.13121238,89165.0,89156.0,0.000148]
[1769551930042,0.13121238,89165.0,89156.0,8.8e-05]
[1769551939926,0.009912,89153.0,89139.0,0.02297009]
[1769551940135,0.009912,89153.0,89149.0,0.05608532]
[1769551940568,0.1260204,89155.0,89150.0,0.05608499]
[1769551940797,0.1260204,89165.0,89155.0,0.0560817]
[1769551941225,0.12648985,89165.0,89155.0,0.0560817]
[1769551941404,0.12648985,89165.0,89155.0,0.05608185]
[1769551941849,0.12648985,89165.0,89155.0,0.05608201]
[1769551942264,0.12648985,89165.0,89156.0,0.05608131]
[1769551942668,0.12648985,89165.0,89154.0,0.05608226]
[1769551942925,0.12648985,89165.0,89155.0,0.05608184]
[1769551943126,0.12648985,89165.0,89154.0,0.05608226]
[1769551944294,0.12648985,89165.0,89153.0,0.05608217]
[1769551944498,0.12648985,89165.0,89152.0,0.05608392]
[1769551944695,0.12648985,89165.0,89153.0,0.05608308]
[1769551945289,0.12648985,89165.0,89153.0,0.05608335]
[1769551947755,0.12648985,89165.0,89152.0,0.05608392]
[1769551948866,0.12648985,89165.0,89151.0,0.05608449]
[1769551949496,0.12648985,89165.0,89152.0,0.05608393]
[1769551950596,0.12648985,89165.0,89152.0,0.05608342]
[1769551950797,0.12648985,89165.0,89153.0,0.0560833]
[1769551950997,0.12648985,89165.0,89152.0,0.05608342]
[1769551951843,0.12648985,89165.0,89153.0,0.05608299]
[1769551952020,0.12648985,89165.0,89153.0,0.05608333]
[1769551952201,0.12648985,89165.0,89152.0,0.05608342]
[1769551952609,0.12648985,89165.0,89151.0,0.05608454]
[1769551953045,0.12648985,89165.0,89150.0,0.05608524]
[1769551953250,0.12648985,89165.0,89151.0,0.05608434]
[1769551954021,0.12648985,89165.0,89150.0,0.05608524]
[1769551954422,0.12648985,89165.0,89151.0,0.05608456]
[1769551955961,0.12648985,89165.0,89150.0,0.05608524]
[1769551956425,0.12648985,89165.0,89151.0,0.05608452]
[1769551957894,0.12648985,89165.0,89150.0,0.05608524]
[1769551958302,0.12648985,89165.0,89150.0,0.05608493]
[1769551958490,0.12648985,89165.0,89151.0,0.05608424]
[1769551958710,0.12648985,89165.0,89152.0,0.05608379]
[1769551959805,0.12648985,89165.0,89151.0,0.05608424]
[1769551960126,0.12648985,89165.0,89152.0,0.05608395]
[1769551965912,0.14986869,89165.0,89152.0,0.05608395]
[1769551966358,0.000148,89170.0,89151.0,0.12090593]
[1769551966539,0.11182426,89169.0,89158.0,0.0560798]
[1769551966739,0.11182426,89168.0,89161.0,0.0560783]
[1769551966885,0.000148,89170.0,89161.0,0.0560783]
[1769551967091,0.000148,89170.0,89160.0,0.05607872]
[1769551967092,0.11182487,89169.0,89160.0,0.05607872]
[1769551967292,0.11182487,89168.0,89160.0,0.05607872]
[1769551967512,0.000148,89170.0,89160.0,0.05607872]
[1769551967713,0.11183211,89169.0,89160.0,0.05607872]
[1769551968047,0.11183211,89168.0,89160.0,0.05607858]
[1769551968187,0.000148,89170.0,89160.0,0.05607858]
[1769551968498,0.11184564,89169.0,89160.0,0.05607858]
[1769551968663,0.11184564,89168.0,89160.0,0.05607858]
[1769551968863,0.000148,89170.0,89160.0,0.05607858]
[1769551969065,0.11184195,89169.0,89160.0,0.05607858]
[1769551969283,0.11184195,89168.0,89160.0,0.05607858]
[1769551969485,0.000148,89170.0,89160.0,0.05607858]
[1769551969694,0.11185684,89169.0,89160.0,0.05607858]
[1769551969893,0.11185684,89168.0,89160.0,0.05607858]
[1769551970118,0.000148,89170.0,89160.0,0.05607858]
[1769551970299,0.11185683,89169.0,89160.0,0.05607858]
[1769551970612,0.11185683,89168.0,89160.0,0.05607858]
[1769551970820,0.000148,89170.0,89161.0,0.05607822]
[1769551971102,0.11185515,89169.0,89160.0,0.05607858]
[1769551971335,0.11185515,89168.0,89160.0,0.05607858]
[1769551971640,0.000148,89170.0,89160.0,0.05607858]
[1769551971858,0.11185717,89169.0,89160.0,0.05607858]
[1769551972053,0.11185717,89168.0,89160.0,0.05607858]
[1769551972257,0.000148,89170.0,89160.0,0.05607858]
[1769551972460,0.11185606,89169.0,89160.0,0.05607858]
[1769551972582,0.11185606,89168.0,89160.0,0.05607858]
[1769551972790,0.000148,89170.0,89152.0,0.02324377]
[1769551973071,0.000148,89170.0,89158.0,0.05607998]
[1769551973072,0.11185571,89169.0,89158.0,0.05607998]
[1769551973297,0.11185571,89168.0,89158.0,0.05607998]
[1769551973615,0.000148,89170.0,89158.0,0.05607998]
[1769551973821,0.11185489,89169.0,89158.0,0.05607998]
[1769551974041,0.11185489,89168.0,89159.0,0.05607944]
[1769551974253,0.000148,89170.0,89152.0,0.1441497]
[1769551974463,0.11185359,89169.0,89160.0,0.05607863]
[1769551974669,0.11185359,89168.0,89160.0,0.05607863]
[1769551974843,0.000148,89170.0,89160.0,0.05607863]
[1769551975006,0.11185329,89169.0,89160.0,0.05607863]
[1769551975201,0.11185329,89168.0,89160.0,0.05607863]
[1769551975412,0.000148,89170.0,89160.0,0.05607863]
[1769551975612,0.11185211,89169.0,89160.0,0.05607863]
[1769551975909,0.11185211,89168.0,89160.0,0.05607863]
[1769551976096,0.000148,89170.0,89160.0,0.05607863]
[1769551976299,0.11185363,89169.0,89161.0,0.05607811]
[1769551976564,0.000148,89170.0,89161.0,0.05607811]
[1769551976711,0.11184881,89169.0,89161.0,0.05607811]
[1769551976923,0.000148,89170.0,89161.0,0.05607811]
[1769551977116,0.11184877,89169.0,89162.0,0.0560774]
[1769551977486,0.000148,89170.0,89162.0,0.0560774]
[1769551977691,0.11184584,89169.0,89162.0,0.0560774]
[1769551977844,0.000148,89170.0,89162.0,0.0560774]
[1769551978085,0.11184584,89169.0,89162.0,0.0560774]
[1769551978264,0.000148,89170.0,89163.0,0.05607687]
[1769551979074,0.000148,89170.0,89164.0,0.05607642]
[1769551980279,0.11424038,89163.0,89142.0,0.1152]
[1769551980486,0.11424038,89163.0,89157.0,0.05608079]
[1769551980696,0.11424038,89163.0,89156.0,0.05608118]
[1769551980905,0.03237446,89168.0,89157.0,0.05608083]
[1769551981113,0.03237446,89168.0,89158.0,0.05608014]
[1769551981462,0.3789998,89170.0,89142.0,0.1152]
[1769551981463,0.000148,89170.0,89153.0,0.05608336]
[1769551981672,0.03237446,89169.0,89166.0,0.05607467]
[1769551981879,0.03237446,89169.0,89167.0,0.05607453]
[1769551982079,0.01,89166.0,89152.0,0.11798856]
[1769551982283,0.03237446,89169.0,89159.0,0.22431822]
[1769551982495,0.03237446,89169.0,89153.0,0.22433315]
[1769551982686,0.03912127,89168.0,89157.0,0.05608034]
[1769551982892,0.03912127,89167.0,89157.0,0.05608034]
[1769551983078,0.03912127,89167.0,89158.0,0.05607979]
[1769551983300,0.03912127,89167.0,89161.0,0.05607805]
[1769551983608,0.03912127,89167.0,89161.0,0.0560781]
[1769551985303,1e-08,89170.0,89169.0,0.05607329]
[1769551990443,0.000148,89187.0,89181.0,0.05600538]
[1769551990642,0.11178746,89186.0,89182.0,0.05606487]
[1769551990875,0.000148,89187.0,89184.0,0.05606333]
[1769551991281,0.000148,89187.0,89184.0,0.05606334]
[1769551991479,0.000148,89187.0,89171.0,0.11798856]
[1769551991740,0.00022167,89187.0,89180.0,0.0560659]
[1769551992376,0.00022167,89187.0,89179.0,0.05606646]
[1769551992607,0.00022167,89187.0,89178.0,0.05606736]
[1769551992813,0.00022167,89187.0,89177.0,0.0560682]
[1769551993035,0.00022167,89187.0,89176.0,0.11798856]
[1769551993449,0.00022167,89187.0,89172.0,0.05607136]
[1769551993566,0.00022167,89187.0,89172.0,0.17405992]
[1769551993784,0.26461142,89182.0,89157.0,0.11798856]
[1769551993993,0.26461142,89170.0,89158.0,0.06277415]
[1769551994203,0.11424038,89168.0,89158.0,0.06277415]
[1769551994415,0.15561051,89168.0,89156.0,0.000148]
[1769551994629,0.11424038,89164.0,89142.0,0.03367239]
[1769551994831,0.26461142,89160.0,89142.0,0.03367239]
[1769551995049,0.04137013,89158.0,89140.0,0.1152]
[1769551995251,0.11424038,89157.0,89140.0,0.1152]
[1769551995869,0.03912104,89156.0,89140.0,0.1152]
[1769551996075,0.26461142,89160.0,89147.0,0.00061745]
[1769551996076,0.11424038,89153.0,89147.0,0.00061745]
[1769551996302,0.11424038,89151.0,89138.0,0.000148]
[1769551996516,0.03912104,89148.0,89138.0,0.000148]
[1769551996724,0.03912104,89148.0,89121.0,0.05625109]
[1769551996725,0.03912104,89144.0,89122.0,0.08965795]
[1769551996929,0.26461142,89150.0,89122.0,0.08965795]
[1769551996930,0.03912104,89148.0,89122.0,0.08965795]
[1769551997139,0.03912104,89144.0,89122.0,0.08965795]
[1769551997351,0.11424038,89141.0,89122.0,0.08965795]
[1769551997557,0.03912104,89140.0,89123.0,0.11798856]
[1769551997959,0.03912104,89140.0,89122.0,0.08965795]
[1769551997960,0.0368721,89149.0,89130.0,0.26461142]
[1769551998177,0.0368721,89145.0,89123.0,0.11798856]
[1769551998404,0.0368721,89144.0,89123.0,0.11798856]
[1769551998606,0.11424038,89143.0,89122.0,0.20764651]
[1769551998808,0.15111248,89142.0,89122.0,0.14576079]
[1769551999020,0.15111248,89142.0,89123.0,0.11798856]
[1769551999235,0.15111248,89142.0,89123.0,0.05610171]
[1769551999438,0.0368721,89142.0,89122.0,0.08965795]
[1769551999646,0.0368721,89142.0,89125.0,0.11798856]
[1769551999840,0.0368721,89142.0,89126.0,0.11798856]
[1769552000931,0.0368721,89142.0,89130.0,0.26461142]
[1769552001141,0.0368721,89142.0,89126.0,0.11798856]
[1769552001535,0.11424038,89141.0,89122.0,0.08965795]
[1769552001769,0.0368721,89142.0,89123.0,0.11798856]
[1769552002223,0.15111248,89142.0,89123.0,0.11798856]
[1769552002437,0.11424038,89142.0,89123.0,0.11798856]
[1769552002666,0.02787621,89140.0,89120.0,0.1152]
[1769552002891,0.000124,89149.0,89122.0,0.11798856]
[1769552002892,0.11424038,89147.0,89122.0,0.11798856]
[1769552003102,0.11424038,89143.0,89122.0,0.11798856]
[1769552003369,0.000124,89149.0,89122.0,0.11798856]
[1769552003370,0.11424038,89141.0,89122.0,0.11798856]
[1769552003580,0.02787621,89140.0,89122.0,0.11798856]
[1769552003804,0.02337843,89147.0,89130.0,0.26461142]
[1769552004219,0.000124,89149.0,89130.0,0.26461142]
[1769552004220,0.02337843,89146.0,89130.0,0.26461142]
[1769552004430,0.12029479,89145.0,89130.0,0.26461142]
[1769552004635,0.14493876,89145.0,89130.0,0.26461142]
[1769552005299,0.14493876,89145.0,89127.0,0.12141883]
[1769552005481,0.12029479,89145.0,89127.0,0.12141883]
[1769552005633,0.11935043,89144.0,89127.0,0.12141883]
[1769552005839,0.000124,89149.0,89130.0,0.26461142]
[1769552006044,0.000124,89149.0,89135.0,0.16928092]
[1769552006045,0.02476797,89149.0,89135.0,0.16928092]
[1769552006242,0.02476797,89149.0,89135.0,0.11318639]
[1769552006650,0.02476797,89149.0,89139.0,0.26461142]
[1769552006966,0.000124,89149.0,89139.0,0.26461142]
[1769552007334,0.000124,89149.0,89140.0,0.05609114]
[1769552007534,0.000124,89149.0,89139.0,0.32070335]
[1769552007767,0.000124,89149.0,89139.0,0.26461142]
[1769552009442,0.000124,89149.0,89139.0,0.3207035]
[1769552009818,0.000124,89149.0,89139.0,0.26461142]
[1769552010928,0.08935913,89169.0,89139.0,0.26461142]
[1769552011135,0.08935913,89169.0,89153.0,0.05608294]
[1769552011136,0.02464397,89168.0,89153.0,0.05608294]
[1769552011347,0.02464397,89168.0,89149.0,0.48907814]
[1769552011348,0.02464397,89168.0,89156.0,0.05608108]
[1769552011566,0.02464397,89168.0,89158.0,0.05608021]
[1769552011990,1e-08,89159.0,89158.0,0.05608021]
[1769552012427,0.0001664,89169.0,89168.0,0.05607392]
[1769552012633,0.0001664,89169.0,89163.0,0.22430748]
[1769552012835,0.0001664,89169.0,89166.0,0.05607455]
[1769552013058,1e-08,89169.0,89168.0,0.05607392]
[1769552013265,0.11935043,89190.0,89180.0,0.05606638]
[1769552013266,0.08919273,89182.0,89180.0,0.05606638]
[1769552013499,0.23318713,89190.0,89172.0,0.34417478]
[1769552013733,0.00012104,89182.0,89180.0,0.3206778]
[1769552013936,0.08927953,89194.0,89173.0,0.22428313]
[1769552013937,8.68e-05,89194.0,89179.0,0.22426715]
[1769552014129,8.68e-05,89194.0,89184.0,0.05606385]
[1769552014310,0.11943723,89194.0,89180.0,0.22426427]
[1769552014509,0.11943723,89194.0,89184.0,0.0560635]
[1769552014826,8.68e-05,89194.0,89193.0,0.05605821]
[1769552015360,0.11960343,89209.0,89190.0,0.02349258]
[1769552015570,0.11960343,89209.0,89192.0,0.05605883]
[1769552015790,0.11960343,89209.0,89200.0,0.05605334]
[1769552015998,0.1442474,89209.0,89192.0,0.22423535]
[1769552016190,0.02464397,89206.0,89197.0,0.05605533]
[1769552016363,0.11935043,89203.0,89185.0,0.02349258]
[1769552016587,0.11943724,89197.0,89191.0,0.05605928]
[1769552017206,0.11943724,89197.0,89187.0,0.05606162]
[1769552017410,0.11943724,89197.0,89181.0,0.20485795]
[1769552017411,0.11943724,89197.0,89181.0,0.1152]
[1769552017834,0.11943724,89197.0,89187.0,0.0560615]
[1769552018033,0.11943724,89197.0,89187.0,0.0560614]
[1769552018464,0.11943724,89197.0,89185.0,0.05606305]
[1769552018666,0.11943724,89197.0,89187.0,0.05606185]
[1769552019129,0.11943724,89197.0,89186.0,0.05606241]
[1769552019248,0.11943724,89197.0,89186.0,0.05606217]
[1769552019455,0.11935043,89195.0,89186.0,0.1152]
[1769552019713,0.1439944,89193.0,89182.0,0.0560648]
[1769552019856,0.1439944,89193.0,89182.0,0.05606492]
[1769552020057,0.1439944,89193.0,89181.0,0.1152]
[1769552020458,0.1439944,89193.0,89174.0,0.08399764]
[1769552020682,0.02464397,89190.0,89177.0,0.05606791]
[1769552020874,0.11935043,89187.0,89177.0,0.05606779]
[1769552021100,0.1439944,89185.0,89178.0,0.05606749]
[1769552021365,0.1439944,89185.0,89180.0,0.05606625]
[1769552021568,0.1439944,89185.0,89170.0,0.32729076]
[1769552021769,0.1439944,89185.0,89178.0,0.05606759]
[1769552022390,0.1439944,89185.0,89170.0,0.26461142]
[1769552022872,0.02464397,89185.0,89178.0,0.05606714]
[1769552023083,0.1441351,89190.0,89178.0,0.05606714]
[1769552023228,0.1441351,89190.0,89179.0,0.05606655]
[1769552023441,0.1441351,89190.0,89178.0,0.05606714]
[1769552023644,0.1441351,89190.0,89179.0,0.05606691]
[1769552023847,0.1441351,89190.0,89175.0,0.22427707]
[1769552024156,0.1441351,89190.0,89170.0,0.51220874]
[1769552024362,0.1441351,89190.0,89177.0,0.05606767]
[1769552024578,0.1441351,89190.0,89178.0,0.05606727]
[1769552025311,0.11949113,89190.0,89175.0,0.05606948]
[1769552025441,0.11949113,89190.0,89170.0,0.02349258]
[1769552025442,0.11935043,89186.0,89172.0,0.22428443]
[1769552025647,0.1439944,89186.0,89175.0,0.05606907]
[1769552025861,0.1439944,89186.0,89170.0,0.264428]
[1769552025862,0.1439944,89186.0,89177.0,0.05606775]
[1769552026273,0.1439944,89186.0,89180.0,0.05606633]
[1769552026778,0.1439944,89186.0,89181.0,0.05606569]
[1769552027828,0.1439944,89186.0,89182.0,0.05606512]
[1769552028194,0.1439944,89186.0,89181.0,0.05606469]
[1769552028588,0.11935043,89186.0,89181.0,0.05606469]
[1769552029450,0.11935043,89186.0,89170.0,0.264428]
[1769552029646,0.11935043,89186.0,89178.0,0.0560671]
[1769552029963,0.11935043,89186.0,89178.0,0.05606738]
[1769552030498,0.11935043,89186.0,89179.0,0.05606642]
[1769552030851,0.11935043,89186.0,89180.0,0.05606633]
[1769552031255,0.11935043,89186.0,89180.0,0.05606631]
[1769552031427,0.11935043,89186.0,89179.0,0.05606642]
[1769552031633,0.11935043,89186.0,89177.0,0.05606776]
[1769552031831,0.11935043,89186.0,89178.0,0.0560676]
[1769552032246,0.11935043,89186.0,89177.0,0.05606776]
[1769552032733,0.11935043,89186.0,89175.0,0.05606898]
[1769552032907,0.11935043,89186.0,89177.0,0.05606821]
[1769552033206,0.11935043,89186.0,89176.0,0.05606833]
[1769552034919,0.11935043,89186.0,89167.0,0.02402198]
[1769552035128,0.11935043,89186.0,89174.0,0.05606986]
[1769552035840,0.11935043,89186.0,89170.0,0.264428]
[1769552036060,0.11935043,89186.0,89173.0,0.05607019]
[1769552036320,0.11935043,89186.0,89174.0,0.05607005]
[1769552037086,0.11935043,89186.0,89176.0,0.05606888]
[1769552037285,0.11935043,89186.0,89177.0,0.05606805]
[1769552037461,0.11935043,89186.0,89176.0,0.05606888]
[1769552037671,0.11935043,89186.0,89177.0,0.05606787]
[1769552038299,0.11935043,89186.0,89176.0,0.05606888]
[1769552039463,0.11935043,89186.0,89170.0,0.05607267]
[1769552039605,0.11935043,89186.0,89175.0,0.05606896]
[1769552040002,0.11935043,89186.0,89169.0,0.02402198]
[1769552040326,0.13963605,89186.0,89175.0,0.05606909]
[1769552040528,0.13963605,89186.0,89178.0,0.05606758]
[1769552040738,0.11935043,89186.0,89178.0,0.05606749]
[1769552041504,0.11935043,89186.0,89178.0,0.05606723]
[1769552042122,0.11935043,89186.0,89177.0,0.05606815]
[1769552042349,0.11935043,89186.0,89178.0,0.05606719]
[1769552042550,0.11935043,89186.0,89172.0,0.05607141]
[1769552042754,0.11935043,89186.0,89178.0,0.05606705]
[1769552042978,0.11935043,89186.0,89178.0,0.05606732]
[1769552043902,0.06435043,89186.0,89178.0,0.05606732]
[1769552044441,0.06435043,89186.0,89179.0,0.05606694]
[1769552044656,0.0001407,89190.0,89182.0,0.05606467]
[1769552044863,0.0001407,89190.0,89183.0,0.02402198]
[1769552045207,0.0001407,89190.0,89183.0,0.08008627]
[1769552045694,0.0001407,89190.0,89183.0,0.02402198]
[1769552045866,0.0001407,89190.0,89183.0,0.08008644]
[1769552047658,0.0001407,89190.0,89183.0,0.02402198]
[1769552048397,0.0001407,89190.0,89183.0,0.08008623]
[1769552048648,0.0001407,89190.0,89183.0,0.08002622]
[1769552049360,0.0001407,89190.0,89183.0,0.08002618]
[1769552050131,0.0001407,89190.0,89183.0,0.05606421]
[1769552051629,0.0001407,89190.0,89181.0,0.05606538]
[1769552053203,0.11471529,89189.0,89181.0,0.05606538]
[1769552054382,0.11471529,89189.0,89180.0,0.05606607]
[1769552054579,0.11471529,89189.0,89180.0,0.05606617]
[1769552054806,0.11471529,89189.0,89179.0,0.05606659]
[1769552054937,0.11471529,89189.0,89180.0,0.05606627]
[1769552055337,0.11471529,89189.0,89180.0,0.05606606]
[1769552056754,0.11471529,89189.0,89177.0,0.05606826]
[1769552056961,0.11471529,89189.0,89182.0,0.05606497]
[1769552057176,0.0001407,89190.0,89187.0,0.05606185]
[1769552059944,0.0001407,89190.0,89186.0,0.05606255]
[1769552060564,0.0001407,89190.0,89187.0,0.05606188]
[1769552062617,0.0001407,89190.0,89188.0,0.05606077]
[1769552062979,0.0001407,89190.0,89189.0,0.05606072]
[1769552063381,0.0001407,89190.0,89188.0,0.05606077]
[1769552063382,0.14043709,89197.0,89188.0,0.05606077]
[1769552063825,0.14043709,89197.0,89187.0,0.05606192]
[1769552064874,0.13979603,89197.0,89188.0,0.05606133]
[1769552066810,0.13979603,89197.0,89189.0,0.05606065]
[1769552066950,0.13979603,89197.0,89188.0,0.05606133]
[1769552067149,0.13961616,89197.0,89188.0,0.05606133]
[1769552067798,0.13961616,89197.0,89187.0,0.05606195]
[1769552067975,0.13961616,89197.0,89188.0,0.05606105]
[1769552069358,0.11669367,89197.0,89188.0,0.05606105]
[1769552069493,0.02453937,89196.0,89188.0,0.05606105]
[1769552069955,0.02453937,89196.0,89184.0,0.05606357]
[1769552069956,0.11055849,89196.0,89184.0,0.05606357]
[1769552070165,0.02485998,89193.0,89182.0,0.05606496]
[1769552070294,0.02485998,89193.0,89182.0,0.05620566]
[1769552071323,0.02485998,89193.0,89182.0,0.05620577]
[1769552071613,0.02453936,89193.0,89182.0,0.05620577]
[1769552072602,0.02421876,89193.0,89182.0,0.05620577]
[1769552072799,0.02421876,89193.0,89182.0,0.0001407]
[1769552073005,0.02421876,89193.0,89182.0,0.0562056]
[1769552073786,0.02421876,89193.0,89187.0,0.05606165]
[1769552074433,0.02421876,89193.0,89182.0,0.0001407]
[1769552074582,0.02421876,89193.0,89189.0,0.0560604]
[1769552074782,0.02421876,89193.0,89190.0,0.05605974]
[1769552074991,0.02421876,89193.0,89189.0,0.05606047]
[1769552075189,0.02421876,89193.0,89188.0,0.05606027]
[1769552075392,0.02421876,89193.0,89187.0,0.05606191]
[1769552075609,0.02421876,89193.0,89188.0,0.05606086]
[1769552076367,0.02421876,89193.0,89187.0,0.05606196]
[1769552076577,0.02421876,89193.0,89188.0,0.0560612]
[1769552077862,0.02389804,89193.0,89187.0,0.05606196]
[1769552078017,0.02357728,89193.0,89187.0,0.05606196]